[Event "Austrian Women Bundesliga 2023-24"]
[Site "Austria"]
[Date "2024.04.12"]
[Round "7"]
[White "Batyte, Daiva"]
[Black "Bruessow, Nina"]
[Result "1-0"]
[ECO "A34"]
[WhiteElo "2046"]
[BlackElo "1884"]
[Annotator "TA"]
[PlyCount "109"]
[EventDate "2023.11.21"]
[EventType "team-tourn"]
[EventCountry "AUT"]
[SourceTitle "playchess.com"]
[Source "ChessBase"]
[SourceQuality "1"]
[TimeControl "40/5400+30:1800+30"]

{[%evp 12,109,55,42,52,49,54,54,109,112,102,106,175,115,165,162,162,155,163,151,166,162,162,114,167,170,179,150,202,200,249,250,241,176,420,252,247,253,252,238,245,165,137,135,293,284,260,0,292,239,336,304,376,272,341,273,311,297,293,318,322,326,412,343,340,344,318,350,347,361,440,433,427,412,388,340,413,419,729,750,734,755,739,720,627,0,0,0,1025,1013,844,-15,5734,5726,5726,4129,29976,29977,29986,29987]} 1. Nf3 {[%emt 0:00:03]} Nf6 {[%emt 0:00:15]} 2. c4 {[%emt 0:00:13]} c5 {[%emt 0:00:09]} 3. Nc3 {[%emt 0:00:10]} d5 {[%emt 0:00:39]} 4. cxd5 {[%emt 0:00:20]} Nxd5 {[%emt 0:00:11]} 5. e4 {[%emt 0:00:22]} Nc7 {[%emt 0:00:46]} 6. d4 {[%emt 0:01:12]} cxd4 {[%emt 0:01:28]} 7. Nxd4 {[%emt 0:00:36]} e5 {[%emt 0:01:35] Prevents Bf4.} 8. Ndb5 {[%emt 0:04:55][%cal Oc1g5]} Qxd1+ {[%emt 0:03:36]} 9. Kxd1 {[%emt 0:00:02]} Ne6 {[%emt 0:02:19]} (9... Nxb5 $14 10. Nxb5 (10. Bxb5+ Nc6 $14) 10... Na6) 10. Bc4 $16 {[%emt 0:00:19]} Na6 {[%emt 0:03:16]} 11. Be3 {[%emt 0:00:43][%cal Od1e2] White is much more active. The black rooks are passive.} Nac7 {[%emt 0:26:56]} (11... Bd7 $16 12. Ke2 (12. Bxa7 Be7 $16) (12. Nxa7 Bc5 $16) 12... Nac7) 12. Bxa7 {[%emt 0:02:42]} (12. Bxe6 $1 $18 Nxe6 13. Nd5 (13. Bxa7 Bd7 $16)) 12... Be7 {[%emt 0:06:59]} (12... Nxb5 $16 13. Bxb5+ Bd7) 13. Nd5 {[%emt 0:02:51]} Nxb5 {[%emt 0:09:54]} 14. Bxb5+ {[%emt 0:00:21]} Kf8 {[%emt 0:00:52]} 15. Bb6 {[%emt 0:04:21]} g6 {[%emt 0:04:32]} 16. Rc1 {[%emt 0:02:46]} Bg5 {[%emt 0:05:36]} 17. Rc3 {[%emt 0:08:41]} ({Better is} 17. Rc4 $18) 17... Kg7 {[%emt 0:01:26]} (17... Nd4 $16 18. Bc4 Kg7) 18. a4 $18 {[%emt 0:01:17]} Bd8 {[%emt 0:08:36]} 19. Be3 $36 {[%emt 0:00:28][%mdl 2048] White is on the roll.} Bg5 {[%emt 0:01:25]} (19... Nd4 $16 20. Bxd4 exd4) 20. h4 {[%emt 0:07:17]} Bxe3 {[%emt 0:00:44]} 21. fxe3 {[%emt 0:00:01]} (21. Rxe3 Rd8 $14) (21. Nxe3 Nd4 $14) 21... Rd8 {[%emt 0:01:12]} 22. Ke2 {[%emt 0:00:44] Hoping for Nb6.} h5 $2 {[%emt 0:02:43]} (22... Rb8 23. Nb6 Nf8 24. Nxc8 Rdxc8) 23. Rhc1 {[%emt 0:00:24]} Nf8 {[%emt 0:01:21]} 24. Nb6 {[%emt 0:02:05]} Bg4+ {[%emt 0:00:11]} 25. Ke1 {[%emt 0:00:04]} Rab8 {[%emt 0:00:38]} 26. Rc7 {[%emt 0:00:59]} Ne6 {[%emt 0:02:36]} 27. Rd7 {[%emt 0:00:10]} Nf8 $2 {[%emt 0:02:09]} (27... g5 $16 {is a better defense.}) 28. Re7 {[%emt 0:00:36]} Ne6 {[%emt 0:02:57]} 29. Rd7 {[%emt 0:01:03]} Nf8 $1 {[%emt 0:00:07]} 30. Rd5 {[%emt 0:00:45]} Kf6 {[%emt 0:01:21]} (30... Nh7 {keeps fighting.} 31. Rxe5 Rd6) 31. Rc7 {[%emt 0:01:02] Rxd8 is the strong threat.} Ne6 {[%emt 0:06:07]} 32. Rcd7 {[%emt 0:01:10]} Re8 {[%emt 0:00:42]} 33. Rd2 {[%emt 0:00:39] Threatens to win with Rf2+.} Rf8 {[%emt 0:00:22]} 34. Rf2+ {[%emt 0:01:13]} Kg7 {[%emt 0:00:03][%cal Bf6g7,Bg7g8,Bg8h8][%mdl 32]} 35. Bc4 {[%emt 0:00:22]} Rbd8 {[%emt 0:01:19]} 36. Bd5 {[%emt 0:00:43]} (36. Rxb7 $2 Rd1#) 36... Kg8 {[%emt 0:01:27]} 37. Rxb7 {[%emt 0:00:32]} Nc5 {[%emt 0:01:05]} 38. Rc7 {[%emt 0:09:47]} (38. Rbxf7 Nd3+ 39. Kf1 Rxf7 40. Bxf7+ (40. Rxf7 Rxd5 41. exd5 Kxf7 $11) 40... Kf8 $18) (38. Bxf7+ $2 Rxf7 39. Rd2 Nxb7 $19) 38... Nd3+ {[%emt 0:00:32]} 39. Kf1 {[%emt 0:00:20][%cal Be1f1,Bf1f2,Bf2g3,Bg3f2][%mdl 32]} Nxf2 {[%emt 0:00:10]} 40. Kxf2 {[%emt 0:00:02]} Rb8 {[%emt 0:00:35]} 41. a5 {[%emt 0:30:26]} Kh8 {[%emt 0:03:43]} 42. Kg3 {[%emt 0:00:00]} (42. Bxf7 $2 Kg7 43. Rc6 Rxf7+ 44. Kg3 Rbb7 $19) (42. Rxf7 $2 Rxf7+ 43. Bxf7 Rf8 $19) 42... f5 {[%emt 0:02:14]} 43. Re7 {[%emt 0:00:00]} f4+ {[%emt 0:04:56]} 44. exf4 {[%emt 0:00:00]} exf4+ {[%emt 0:00:47] [#]} (44... Rxf4 $142 45. Rxe5 Rbf8) 45. Kf2 $1 {[%emt 0:00:00]} f3 {[%emt 0:04:09] [#]} 46. g3 $1 {[%emt 0:00:00]} Bc8 {[%emt 0:03:22]} 47. b3 {[%emt 0:00:00][%cal Bb2b3,Bb3b4,Bb4b5][%mdl 32]} Bg4 {[%emt 0:03:18]} 48. e5 $2 {[%emt 0:00:00]} (48. b4 $18) 48... Rfd8 $1 $11 {[%emt 0:01:44]} 49. b4 {[%emt 0:00:00][%cal Oe5e6] And now e6! would win.} (49. Bxf3 $2 {perishes.} Rf8 50. Ke3 Rxf3+ (50... Bxf3 $2 51. Kd4 $19) 51. Kd4 Rxb3 $19 (51... Rxg3 $2 52. e6 $19)) (49. e6 $5 Rbc8 $8 50. Nxc8 Rxd5 51. Rf7 Bxe6 52. Rxf3 Rxa5 53. Nd6 $17) 49... Rf8 $2 {[%emt 0:01:05][%mdl 8192]} ({Wrong is} 49... Rxb6 $2 50. axb6 Rxd5 51. Re8+ Kg7 52. b7 $18) (49... Rbc8 $11 50. Nxc8 Rxd5) 50. e6 $18 {[%emt 0:00:00][%cal Be5e6,Be6f7][%mdl 32]} Rf5 {[%emt 0:05:11]} 51. Rf7 $2 {[%emt 0:00:00]} (51. Bc4 $18) 51... Rxf7 $4 {[%emt 0:05:07][%mdl 8192]} (51... Rxd5 $11 52. Nxd5 Bxe6 53. Rxf3 Bxd5) 52. exf7 {[%emt 0:00:00][%cal Ob4b5] Threatening mate with b5!} Kg7 {[%emt 0:00:57]} 53. b5 {[%emt 0:00:00][%cal Oa5a6] a6! would kill now.} Kf8 {[%emt 0:01:05] [#]} 54. a6 $1 {[%emt 0:00:00][%cal Ba5a6,Ba6a7][%mdl 32]} Rxb6 {[%emt 0:00:30]} (54... Rd8 55. a7) 55. a7 {[%emt 0:00:00] Weighted Error Value: White=0.60/Black=0.46.  Loses game:     	---       	Black=1      Mistake:       	White=2     	Black=9      Inaccurate:     	White=2     	---        OK:         	White=14    	Black=10     Best:        	White=2     	Black=5      Strong:       	White=1     	Black=1} (55. Bxf3 $2 {loses.} Rf6 (55... Rxb5 $2 56. Bg2 $19) (55... Kxf7 $2 56. Bc6 $18) 56. Ke3 Rxf3+ $19 (56... Bxf3 $2 57. Kd4 $19)) 1-0

[Event "Austrian Women Bundesliga 2023-24"]
[Site "Austria"]
[Date "2024.04.12"]
[Round "7"]
[White "Hercog, Nusa"]
[Black "Konecny, Sophie"]
[Result "1-0"]
[ECO "E20"]
[WhiteElo "2034"]
[BlackElo "1907"]
[Annotator "TA"]
[PlyCount "75"]
[EventDate "2023.11.21"]
[EventType "team-tourn"]
[EventCountry "AUT"]
[SourceTitle "playchess.com"]
[Source "ChessBase"]
[SourceQuality "1"]
[TimeControl "40/5400+30:1800+30"]

{[%evp 12,75,18,12,33,23,47,19,35,16,21,0,14,0,11,0,7,7,5,9,52,31,61,55,50,54,63,60,66,80,67,63,89,85,80,84,130,99,102,85,231,238,248,247,227,126,210,118,355,261,241,268,258,264,257,158,226,223,329,336,1171,1135,29986,29987,29987,29988]} 1. d4 {[%emt 0:00:04]} Nf6 {[%emt 0:00:07]} 2. c4 {[%emt 0:00:09]} e6 {[%emt 0:00:04]} 3. Nc3 {[%emt 0:00:08]} Bb4 {[%emt 0:00:06]} 4. Nf3 {[%emt 0:00:06]} c5 {[%emt 0:01:16]} 5. g3 {[%emt 0:00:09]} O-O {[%emt 0:01:18]} 6. Bg2 {[%emt 0:02:01]} d5 {[%emt 0:02:49]} 7. cxd5 {[%emt 0:03:54]} exd5 {[%emt 0:02:41]} 8. O-O {[%emt 0:04:50]} h6 {[%emt 0:04:57]} 9. Qc2 {[%emt 0:07:37]} Re8 {[%emt 0:06:07] The position is equal.} 10. dxc5 {[%emt 0:09:42]} Bxc5 {[%emt 0:03:50]} 11. Rd1 {[%emt 0:03:29][%cal Oc3d5]} Nc6 {[%emt 0:11:30]} 12. a3 {[%emt 0:24:10]} Be6 {[%emt 0:14:19]} 13. e3 {[%emt 0:10:28]} Bb6 {[%emt 0:05:32]} 14. b4 {[%emt 0:03:39]} Rc8 {[%emt 0:04:31]} 15. Bb2 {[%emt 0:05:13]} Qe7 {[%emt 0:05:18]} 16. Qd3 {[%emt 0:04:11]} Red8 {[%emt 0:06:15]} 17. Ne2 {[%emt 0:00:38]} Bg4 {[%emt 0:07:50]} 18. h3 {[%emt 0:05:47]} Bxf3 {[%emt 0:01:56]} 19. Bxf3 {[%emt 0:00:06]} Ne5 {[%emt 0:00:18]} 20. Bxe5 {[%emt 0:00:28]} Qxe5 {[%emt 0:00:07]} 21. a4 {[%emt 0:05:44][%cal Ba3a4,Ba4a5][%mdl 32]} a6 {[%emt 0:03:56] White now steadily converts the win.} 22. a5 {[%emt 0:00:47]} Ba7 {[%emt 0:00:31]} 23. b5 {[%emt 0:00:56][%cal Bb4b5,Bb5b6][%mdl 32]} Ne4 {[%emt 0:06:20]} (23... Qd6 $142) 24. b6 {[%emt 0:03:31]} Bb8 {[%emt 0:00:42]} 25. Rac1 {[%emt 0:01:34]} Nc5 {[%emt 0:07:03]} (25... Rxc1 $16 {was worth a try.} 26. Rxc1 Bd6) 26. Qa3 $18 {[%emt 0:00:51]} Ne4 {[%emt 0:02:27]} 27. Rxc8 {[%emt 0:02:31]} Rxc8 {[%emt 0:00:03]} 28. Qb3 {[%emt 0:00:29]} (28. Qa4 $18) 28... Qf5 {[%emt 0:01:42] [#]} (28... Rc5 $16) 29. Kg2 {[%emt 0:00:45]} (29. Rxd5 $2 Qxf3 $19) (29. Bxe4 $1 $18 dxe4 30. Qd5 Qxd5 31. Rxd5) 29... Ng5 $2 {[%emt 0:00:49]} (29... Rc5 $16 {might work better.}) 30. Bg4 {[%emt 0:00:24]} Qe4+ {[%emt 0:00:20] [#]} 31. f3 $1 {[%emt 0:00:59][%cal Bf2f3,Bf3f4][%mdl 32]} Qc2 {[%emt 0:00:12]} 32. Qxc2 {[%emt 0:00:20]} (32. Qxd5 $2 Qxe2+ 33. Kh1 Rc2 (33... Bxg3 $2 34. Qd2 $19) 34. Qd8+ Kh7 35. Qd3+ Qxd3 36. Rxd3 h5 (36... Bxg3 $2 37. Rd7 $19) 37. Bxh5 Nxh3 $19 (37... Bxg3 $2 38. Bg4 $19)) 32... Rxc2 {[%emt 0:00:01]} 33. f4 {[%emt 0:00:13]} (33. Kf1 $6 h5 $16) 33... Ne4 {[%emt 0:01:28]} (33... f5 $16 34. Bh5 (34. Bxf5 Rxe2+ 35. Kf1 Rxe3 $11) 34... Ne4) 34. Rxd5 {[%emt 0:00:21]} Bd6 {[%emt 0:00:21]} (34... Rd2 $142 35. Rd4 Rxd4 36. exd4 (36. Nxd4 Nc5 $18) 36... Bd6) 35. Bf3 {[%emt 0:00:54]} Nc3 {[%emt 0:00:35]} (35... f5 36. g4 (36. Rxf5 Nc3 $18) 36... Bb4 37. Rd8+ (37. Rxf5 Nd6 $18) 37... Kf7 38. gxf5 Nd6 39. Rd7+ Kf8) 36. Rxd6 {[%emt 0:00:10]} Nxe2 {[%emt 0:00:14]} 37. Rd8+ {[%emt 0:00:05]} Kh7 {[%emt 0:00:13]} 38. Be4+ {[%emt 0:00:05] Weighted Error Value: White=0.21 (precise) /Black=0.65.  Loses game:     	---       	Black=1      Mistake:       	White=2     	Black=6      Inaccurate:     	White=2     	Black=4      OK:         	White=12    	Black=8      Best:        	White=2     	---        Strong:       	White=1     	---} 1-0

[Event "Austrian Women Bundesliga 2023-24"]
[Site "Austria"]
[Date "2024.04.12"]
[Round "7"]
[White "Hiebler, Laura"]
[Black "Khrapko, Marharyta"]
[Result "0-1"]
[ECO "A20"]
[WhiteElo "1999"]
[BlackElo "2218"]
[Annotator "TA"]
[PlyCount "94"]
[EventDate "2023.11.21"]
[EventType "team-tourn"]
[EventCountry "AUT"]
[SourceTitle "playchess.com"]
[Source "ChessBase"]
[SourceQuality "1"]
[TimeControl "40/5400+30:1800+30"]

{[%evp 12,94,20,12,0,0,8,-1,11,-20,-21,-20,4,3,33,29,30,7,0,0,10,0,0,0,14,-21,0,-21,-16,-19,-16,-10,12,0,12,-14,14,0,29,-30,-21,-108,-113,-110,-97,-104,-99,-102,-28,-34,-51,-69,-35,-143,-39,-73,20,-85,-53,-110,-109,-127,-118,-170,-118,-159,-123,-194,-218,-212,-184,-194,-183,-177,-26,-1076,-1042,-1587,-1255,-29976,-29977,-29987,-5635,-5716,-5492]} 1. c4 {[%emt 0:00:06]} e5 {[%emt 0:00:11]} 2. g3 {[%emt 0:00:17]} d6 {[%emt 0:02:46]} 3. Bg2 {[%emt 0:00:33]} f5 {[%emt 0:00:06]} 4. Nc3 {[%emt 0:01:48]} Nf6 {[%emt 0:00:08]} 5. d3 {[%emt 0:03:22]} Be7 {[%emt 0:00:18]} 6. e4 {[%emt 0:09:56]} c6 {[%emt 0:06:08]} 7. Nge2 {[%emt 0:02:13]} O-O {[%emt 0:00:09]} 8. O-O {[%emt 0:00:27]} Qe8 {[%emt 0:01:37]} 9. b3 {[%emt 0:18:44]} Qh5 {[%emt 0:03:42] The position is equal.} 10. Bb2 {[%emt 0:04:27]} f4 {[%emt 0:08:58]} 11. f3 {[%emt 0:05:17] Dodges Ng4} g5 {[%emt 0:06:36]} 12. d4 {[%emt 0:06:39]} Na6 {[%emt 0:21:02]} 13. Ba3 {[%emt 0:06:21]} Rf7 {[%emt 0:12:52][%cal Bf8f7,Bf7e7,Be7e6][%mdl 32]} 14. dxe5 {[%emt 0:03:02]} (14. c5 $5 dxc5 15. dxe5 $14) 14... dxe5 {[%emt 0:00:17]} 15. Bxe7 {[%emt 0:00:26]} Rxe7 {[%emt 0:00:01]} 16. Qd6 {[%emt 0:07:45]} Re6 {[%emt 0:03:12]} 17. Qd8+ {[%emt 0:00:39]} Qe8 {[%emt 0:01:35]} 18. Rfd1 {[%emt 0:01:08]} Bd7 {[%emt 0:01:48]} 19. Qxe8+ {[%emt 0:00:13]} Rexe8 {[%emt 0:00:56]} 20. Rd2 {[%emt 0:02:47]} Re7 {[%emt 0:09:40]} 21. Rad1 {[%emt 0:00:55]} Kf7 {[%emt 0:01:15]} 22. Kf2 {[%emt 0:01:37]} Rg8 {[%emt 0:03:11]} 23. a3 {[%emt 0:02:58]} h5 {[%emt 0:02:12]} 24. b4 {[%emt 0:03:55]} Nc7 {[%emt 0:00:40]} 25. a4 {[%emt 0:02:22] [#]} (25. gxf4 $142 gxf4 26. Nc1) 25... a5 $1 $11 {[%emt 0:01:47]} 26. Rb2 {[%emt 0:03:32]} (26. gxf4 $11 axb4 27. Na2 (27. fxe5 bxc3 28. exf6 cxd2 $14) 27... gxf4 28. Nxb4) (26. bxa5 Na6) 26... axb4 $17 {[%emt 0:01:20]} 27. Rxb4 {[%emt 0:00:07]} Bc8 {[%emt 0:00:03]} 28. a5 {[%emt 0:00:40]} Na6 {[%emt 0:00:26]} 29. Rb2 {[%emt 0:01:43]} Be6 {[%emt 0:00:29]} ({Black should try} 29... Nc5 $17 {With the idea ...Be6.} 30. gxf4 gxf4) 30. Na4 $11 {[%emt 0:02:29]} Bxc4 {[%emt 0:01:14]} 31. Nb6 {[%emt 0:00:42]} Be6 {[%emt 0:00:27]} (31... Bxe2 {simplifies} 32. Rxe2 fxg3+ 33. hxg3 Rf8) 32. Nc3 {[%emt 0:01:49]} (32. gxf4 $1 $15 gxf4 33. Nc3) 32... Nc5 {[%emt 0:00:04]} (32... g4 $17 33. gxf4 exf4) 33. Bf1 {[%emt 0:01:09]} Ne8 {[%emt 0:08:16]} (33... Nfd7 $17 34. Nc4 Ra8 35. Nd6+ Kf6 36. Nxb7 Nxb7 37. Rxb7 Rxa5) 34. Bc4 {[%emt 0:02:27]} (34. gxf4 $11 {remains equal.} exf4 (34... gxf4 35. Nca4 $14) 35. Nca4 Nxa4 36. Nxa4) 34... Nc7 {[%emt 0:02:35]} 35. Bxe6+ {[%emt 0:00:21]} (35. Rbb1 $15) 35... N7xe6 $17 {[%emt 0:00:27]} 36. Nc4 {[%emt 0:00:50]} Kf6 $36 {[%emt 0:00:31][%mdl 2048] Black has strong initiative.} 37. Rd6 {[%emt 0:01:24]} (37. Rb6 $17) 37... Ra8 {[%emt 0:00:43]} (37... h4 $19 {And now ...hxg3+ would win.} 38. g4 Rd8 39. Rxd8 Nxd8) 38. Re2 {[%emt 0:01:34]} Nb3 {[%emt 0:00:34]} 39. Nd5+ {[%emt 0:02:10]} cxd5 $19 {[%emt 0:00:26]} 40. exd5 {[%emt 0:00:01]} Nbd4 $1 {[%emt 0:01:11]} (40... Nxa5 41. Nxe5 Rd8 (41... fxg3+ 42. hxg3 g4 43. dxe6 $14) 42. Rxe6+ Rxe6 43. dxe6 $11) 41. Rb2 {[%emt 0:06:27]} Rc7 $1 {[%emt 0:06:17]} 42. Nd2 {[%emt 0:11:55] [#]} Ke7 $2 {[%emt 0:00:57]} ({Better is} 42... Rxa5 $1 $19 43. dxe6 Ke7 (43... Nxe6 44. Ne4+ Kf5 45. Rdb6 $17) 44. Rd7+ Rxd7 (44... Kxe6 $2 45. Rxc7 fxg3+ 46. hxg3 $18) 45. exd7 Kxd7 46. Rxb7+ Kc6) 43. Rbb6 $2 {[%emt 0:01:36][%mdl 8192] This costs White the game.} (43. Rdb6 $11) 43... Rc2 {[%emt 0:05:11]} (43... Nc5 44. Rh6 Rcc8 (44... Rxa5 45. d6+ Kd7 46. Rh7+ Kc8 47. Rxc7+ Kd8 48. Kf1 $14) (44... Nd3+ 45. Kg2 $11) 45. Ne4 fxg3+ (45... Rxa5 46. Rh7+ Kd8 47. Rd6+ Ke8 48. Rh8+ Ke7 49. Rh7+ Kf8 50. Rh8+ Ke7 51. Rh7+ Kf8 52. Rh8+ Ke7 $11) (45... Nxe4+ 46. fxe4 fxg3+ 47. Kxg3 $15) 46. Kg2 Rxa5 47. Rh7+ Ke8 (47... Kd8 48. Rd6+ Ke8 49. Nf6+ Kf8 50. Rdd7 $11) 48. Nf6+ Kf8 49. Rh8+ (49. Kxg3 $2 Rca8 $19) 49... Kf7 50. Rxc8 Ra2+ 51. Kxg3 Ne2+ 52. Kg2 Nf4+ 53. Kg1 $11) 44. Ke1 {[%emt 0:00:28] [#]} Rxa5 $1 {[%emt 0:04:44][%cal Od4f3] ( -> ...Nxf3+!)} 45. dxe6 {[%emt 0:04:05]} (45. Rxe6+ Nxe6) 45... Ra1+ {[%emt 0:00:17]} 46. Nb1 {[%emt 0:00:06] [#]} Rxb1+ $1 {[%emt 0:02:17][%mdl 512]} 47. Rxb1 {[%emt 0:00:07]} Kxd6 {[%emt 0:00:03] Weighted Error Value: White=0.58/Black=0.47.  Loses game:     	White=1     	---        Mistake:       	White=7     	Black=5      Inaccurate:     	White=6     	Black=5      OK:         	White=10    	Black=7      Best:        	White=1     	Black=2      Strong:       	---       	Black=2} 0-1